[Event "December 19 Late 2023"]
[Site "https://www.chess.com"]
[Date "2023.12.19"]
[Round "1"]
[White "Ibarra Jerez, Jose Carlos"]
[Black "Argandona Riveiro, Inigo"]
[Result "1-0"]
[Board "33"]
[TimeControl "180+1"]
[WhiteFideId "2226332"]
[BlackFideId "2212072"]
[WhiteElo "2634"]
[BlackElo "2391"]
[WhiteTeam "ESP"]
[BlackTeam "ESP"]
[WhiteClock "0:00:42"]
[BlackClock "0:00:00"]

1. e4 {[%clk 0:03:00]}  d6 {[%clk 0:03:00]} 2. d4 {[%clk 0:02:59]}  Nf6 {[%clk 0:03:01]} 3. Nc3 {[%clk 0:03:00]}  e5 {[%clk 0:03:02]} 4. Nf3 {[%clk 0:03:00]}  exd4 {[%clk 0:03:03]} 5. Nxd4 {[%clk 0:02:59]}  Be7 {[%clk 0:03:03]} 6. g3 {[%clk 0:02:59]}  O-O {[%clk 0:03:04]} 7. Bg2 {[%clk 0:02:58]}  Re8 {[%clk 0:03:05]} 8. O-O {[%clk 0:02:57]}  Nbd7 {[%clk 0:03:04]} 9. g4 {[%clk 0:02:56]}  g6 {[%clk 0:02:55]} 10. f4 {[%clk 0:02:52]}  Bf8 {[%clk 0:02:47]} 11. g5 {[%clk 0:02:45]}  Nh5 {[%clk 0:02:47]} 12. Nf5 {[%clk 0:02:36]}  Nc5 {[%clk 0:02:32]} 13. Nh6+ {[%clk 0:02:27]}  Bxh6 {[%clk 0:02:30]} 14. gxh6 {[%clk 0:02:28]}  Qh4 {[%clk 0:02:20]} 15. Nd5 {[%clk 0:02:23]}  Bg4 {[%clk 0:02:05]} 16. Qd4 {[%clk 0:02:22]}  Ne6 {[%clk 0:01:52]} 17. Qc3 {[%clk 0:02:22]}  c6 {[%clk 0:01:47]} 18. Ne3 {[%clk 0:02:10]}  Be2 {[%clk 0:01:32]} 19. Rf2 {[%clk 0:01:54]}  Nexf4 {[%clk 0:01:32]} 20. b3 {[%clk 0:01:33]}  Re5 {[%clk 0:01:19]} 21. Bb2 {[%clk 0:01:16]}  f6 {[%clk 0:01:19]} 22. Qd2 {[%clk 0:01:09]}  Rg5 {[%clk 0:00:47]} 23. Rxe2 {[%clk 0:00:59]}  Nxe2+ {[%clk 0:00:42]} 24. Qxe2 {[%clk 0:01:00]}  Nf4 {[%clk 0:00:41]} 25. Qf3 {[%clk 0:00:52]}  Rf8 {[%clk 0:00:22]} 26. Rf1 {[%clk 0:00:47]}  Nxg2 {[%clk 0:00:16]} 27. Nxg2 {[%clk 0:00:48]}  Qxh6 {[%clk 0:00:15]} 28. Bc1 {[%clk 0:00:47]}  Rxg2+ {[%clk 0:00:03]} 29. Kxg2 {[%clk 0:00:45]}  Qh4 {[%clk 0:00:04]} 30. Bf4 {[%clk 0:00:44]}  d5 {[%clk 0:00:02]} 31. exd5 {[%clk 0:00:43]}  cxd5 {[%clk 0:00:03]} 32. Qxd5+ {[%clk 0:00:43]}  Kg7 {[%clk 0:00:01]} 33. Qxb7+ {[%clk 0:00:41]}  Rf7 {[%clk 0:00:00]} 34. Qf3 {[%clk 0:00:42]} 1-0

[Event "December 19 Late 2023"]
[Site "https://www.chess.com"]
[Date "2023.12.19"]
[Round "1"]
[White "Filali, Razzouki Marouane"]
[Black "Gabuzyan, Hovhannes"]
[Result "0-1"]
[Board "36"]
[TimeControl "180+1"]
[WhiteFideId "9003720"]
[BlackFideId "13303732"]
[WhiteElo "2132"]
[BlackElo "2486"]
[WhiteTeam "MAR"]
[BlackTeam "ARM"]
[WhiteClock "0:00:49"]
[BlackClock "0:00:14"]

1. e4 {[%clk 0:03:00]}  c5 {[%clk 0:02:42]} 2. Nf3 {[%clk 0:02:59]}  e6 {[%clk 0:02:39]} 3. d4 {[%clk 0:02:59]}  cxd4 {[%clk 0:02:37]} 4. Nxd4 {[%clk 0:02:59]}  a6 {[%clk 0:02:34]} 5. c4 {[%clk 0:02:59]}  Nf6 {[%clk 0:02:33]} 6. Nc3 {[%clk 0:02:58]}  Qc7 {[%clk 0:02:34]} 7. a3 {[%clk 0:02:54]}  b6 {[%clk 0:02:32]} 8. Bd3 {[%clk 0:02:54]}  Bb7 {[%clk 0:02:32]} 9. O-O {[%clk 0:02:53]}  Nc6 {[%clk 0:02:31]} 10. Nxc6 {[%clk 0:02:51]}  Bxc6 {[%clk 0:02:29]} 11. Qe2 {[%clk 0:02:50]}  h5 {[%clk 0:02:09]} 12. Nd5 {[%clk 0:02:47]}  Qd8 {[%clk 0:02:02]} 13. Bg5 {[%clk 0:02:44]}  Bxd5 {[%clk 0:01:37]} 14. cxd5 {[%clk 0:02:42]}  e5 {[%clk 0:01:36]} 15. Bxa6 {[%clk 0:02:37]}  Bc5 {[%clk 0:01:34]} 16. b4 {[%clk 0:02:34]}  Bd4 {[%clk 0:01:34]} 17. Rad1 {[%clk 0:02:34]}  Qc7 {[%clk 0:01:19]} 18. a4 {[%clk 0:02:12]}  h4 {[%clk 0:01:17]} 19. h3 {[%clk 0:02:10]}  Nh5 {[%clk 0:01:12]} 20. Bb5 {[%clk 0:02:04]}  f6 {[%clk 0:01:10]} 21. Be3 {[%clk 0:01:55]}  Bxe3 {[%clk 0:01:10]} 22. Qxe3 {[%clk 0:01:53]}  Nf4 {[%clk 0:01:09]} 23. Kh2 {[%clk 0:01:53]}  Qd6 {[%clk 0:01:08]} 24. g3 {[%clk 0:01:52]}  hxg3+ {[%clk 0:01:08]} 25. fxg3 {[%clk 0:01:53]}  Rxh3+ {[%clk 0:01:00]} 26. Kg1 {[%clk 0:01:47]}  Ke7 {[%clk 0:01:00]} 27. Qe1 {[%clk 0:01:32]}  Nh5 {[%clk 0:00:54]} 28. Rf3 {[%clk 0:01:30]}  Rh8 {[%clk 0:00:52]} 29. Bf1 {[%clk 0:01:25]}  Nf4 {[%clk 0:00:37]} 30. Bxh3 {[%clk 0:01:24]}  Nxh3+ {[%clk 0:00:37]} 31. Kg2 {[%clk 0:01:23]}  Ng5 {[%clk 0:00:38]} 32. Re3 {[%clk 0:01:23]}  Kf7 {[%clk 0:00:33]} 33. Qd2 {[%clk 0:01:21]}  Qc7 {[%clk 0:00:30]} 34. Rh1 {[%clk 0:01:21]}  Rxh1 {[%clk 0:00:28]} 35. Kxh1 {[%clk 0:01:20]}  Qc4 {[%clk 0:00:29]} 36. Qe1 {[%clk 0:01:18]}  Qa2 {[%clk 0:00:27]} 37. a5 {[%clk 0:01:16]}  bxa5 {[%clk 0:00:27]} 38. bxa5 {[%clk 0:01:17]}  f5 {[%clk 0:00:20]} 39. exf5 {[%clk 0:01:14]}  Qxd5+ {[%clk 0:00:19]} 40. Kg1 {[%clk 0:01:13]}  e4 {[%clk 0:00:11]} 41. Qe2 {[%clk 0:01:07]}  Nf3+ {[%clk 0:00:11]} 42. Rxf3 {[%clk 0:01:07]}  exf3 {[%clk 0:00:11]} 43. Qc2 {[%clk 0:01:07]}  Qxa5 {[%clk 0:00:11]} 44. Kf2 {[%clk 0:01:05]}  Kf6 {[%clk 0:00:09]} 45. g4 {[%clk 0:01:04]}  Qd5 {[%clk 0:00:08]} 46. Qc3+ {[%clk 0:01:04]}  Kf7 {[%clk 0:00:08]} 47. Qe3 {[%clk 0:01:01]}  Kf6 {[%clk 0:00:06]} 48. Qc3+ {[%clk 0:01:01]}  Qe5 {[%clk 0:00:06]} 49. Qxf3 {[%clk 0:00:58]}  Kg5 {[%clk 0:00:06]} 50. Qd1 {[%clk 0:00:55]}  Qf4+ {[%clk 0:00:06]} 51. Ke1 {[%clk 0:00:52]}  Qe3+ {[%clk 0:00:06]} 52. Kf1 {[%clk 0:00:52]}  Qh3+ {[%clk 0:00:06]} 53. Kf2 {[%clk 0:00:52]}  Qh2+ {[%clk 0:00:06]} 54. Ke3 {[%clk 0:00:52]}  Qf4+ {[%clk 0:00:07]} 55. Kd3 {[%clk 0:00:47]}  Qd6+ {[%clk 0:00:07]} 56. Ke2 {[%clk 0:00:47]}  Qxd1+ {[%clk 0:00:08]} 57. Kxd1 {[%clk 0:00:47]}  Kxg4 {[%clk 0:00:09]} 58. f6 {[%clk 0:00:48]}  gxf6 {[%clk 0:00:09]} 59. Ke2 {[%clk 0:00:49]}  f5 {[%clk 0:00:10]} 60. Kf1 {[%clk 0:00:50]}  f4 {[%clk 0:00:11]} 61. Kf2 {[%clk 0:00:51]}  f3 {[%clk 0:00:11]} 62. Kg1 {[%clk 0:00:51]}  Kg3 {[%clk 0:00:12]} 63. Kf1 {[%clk 0:00:51]}  f2 {[%clk 0:00:13]} 64. Ke2 {[%clk 0:00:49]}  Kg2 {[%clk 0:00:14]} 0-1

[Event "December 19 Late 2023"]
[Site "https://www.chess.com"]
[Date "2023.12.19"]
[Round "1"]
[White "Maksimovic, Bojan"]
[Black "Van Roon, Sjoerd"]
[Result "1-0"]
[Board "37"]
[TimeControl "180+1"]
[WhiteFideId "14408120"]
[BlackFideId "1051075"]
[WhiteElo "2527"]
[BlackElo "2180"]
[WhiteTeam "BIH"]
[BlackTeam "NED"]
[WhiteClock "0:00:11"]
[BlackClock "0:00:05"]

1. a3 {[%clk 0:03:00]}  e5 {[%clk 0:02:59]} 2. e3 {[%clk 0:03:00]}  d5 {[%clk 0:02:58]} 3. h3 {[%clk 0:03:00]}  Nf6 {[%clk 0:02:58]} 4. d4 {[%clk 0:03:01]}  Nc6 {[%clk 0:02:50]} 5. Nf3 {[%clk 0:02:59]}  e4 {[%clk 0:02:47]} 6. Nfd2 {[%clk 0:02:59]}  Be6 {[%clk 0:02:36]} 7. c4 {[%clk 0:02:59]}  Be7 {[%clk 0:02:30]} 8. cxd5 {[%clk 0:02:56]}  Bxd5 {[%clk 0:02:28]} 9. Nc3 {[%clk 0:02:56]}  O-O {[%clk 0:02:27]} 10. Qc2 {[%clk 0:02:37]}  Re8 {[%clk 0:02:24]} 11. Nxd5 {[%clk 0:02:37]}  Qxd5 {[%clk 0:02:24]} 12. Bc4 {[%clk 0:02:37]}  Qf5 {[%clk 0:02:20]} 13. Qb3 {[%clk 0:02:26]}  Qg6 {[%clk 0:02:13]} 14. O-O {[%clk 0:01:46]}  Na5 {[%clk 0:01:56]} 15. Qb5 {[%clk 0:01:46]}  Nxc4 {[%clk 0:01:56]} 16. Nxc4 {[%clk 0:01:46]}  Rab8 {[%clk 0:01:46]} 17. Bd2 {[%clk 0:01:41]}  c6 {[%clk 0:01:45]} 18. Qa5 {[%clk 0:01:40]}  a6 {[%clk 0:01:27]} 19. Qc7 {[%clk 0:01:14]}  Nd5 {[%clk 0:01:19]} 20. Qh2 {[%clk 0:01:10]}  Qe6 {[%clk 0:01:10]} 21. Rac1 {[%clk 0:01:04]}  Rbc8 {[%clk 0:01:02]} 22. Qe5 {[%clk 0:01:03]}  Qxe5 {[%clk 0:00:53]} 23. Nxe5 {[%clk 0:01:04]}  Bf6 {[%clk 0:00:44]} 24. Nc4 {[%clk 0:01:04]}  Re6 {[%clk 0:00:38]} 25. Rce1 {[%clk 0:00:56]}  c5 {[%clk 0:00:33]} 26. dxc5 {[%clk 0:00:24]}  Rxc5 {[%clk 0:00:34]} 27. b3 {[%clk 0:00:24]}  b5 {[%clk 0:00:29]} 28. Na5 {[%clk 0:00:25]}  Rc2 {[%clk 0:00:20]} 29. Rd1 {[%clk 0:00:25]}  g6 {[%clk 0:00:18]} 30. f3 {[%clk 0:00:14]}  Kg7 {[%clk 0:00:14]} 31. a4 {[%clk 0:00:12]}  bxa4 {[%clk 0:00:13]} 32. bxa4 {[%clk 0:00:13]}  exf3 {[%clk 0:00:09]} 33. Rxf3 {[%clk 0:00:14]}  Ra2 {[%clk 0:00:09]} 34. Nb3 {[%clk 0:00:12]}  Nc3 {[%clk 0:00:06]} 35. Bxc3 {[%clk 0:00:06]}  Bxc3 {[%clk 0:00:07]} 36. Rd3 {[%clk 0:00:04]}  Be5 {[%clk 0:00:04]} 37. Rd7 {[%clk 0:00:03]}  Bf6 {[%clk 0:00:03]} 38. Nc5 {[%clk 0:00:03]}  Rc6 {[%clk 0:00:02]} 39. Rd5 {[%clk 0:00:02]}  Rc2 {[%clk 0:00:02]} 40. Ne4 {[%clk 0:00:03]}  Rc1+ {[%clk 0:00:02]} 41. Kf2 {[%clk 0:00:03]}  R1c4 {[%clk 0:00:03]} 42. Nd2 {[%clk 0:00:02]}  Rc2 {[%clk 0:00:02]} 43. Ke2 {[%clk 0:00:02]}  Bc3 {[%clk 0:00:02]} 44. Rd7 {[%clk 0:00:02]}  Rxd2+ {[%clk 0:00:02]} 45. Rxd2 {[%clk 0:00:03]}  Bxd2 {[%clk 0:00:03]} 46. Kxd2 {[%clk 0:00:04]}  Rc4 {[%clk 0:00:03]} 47. Rf4 {[%clk 0:00:05]}  Rxf4 {[%clk 0:00:03]} 48. exf4 {[%clk 0:00:06]}  Kf6 {[%clk 0:00:03]} 49. Ke3 {[%clk 0:00:06]}  Ke6 {[%clk 0:00:04]} 50. Kd4 {[%clk 0:00:07]}  Kd6 {[%clk 0:00:04]} 51. Kc4 {[%clk 0:00:06]}  Kc6 {[%clk 0:00:04]} 52. Kb4 {[%clk 0:00:06]}  Kb6 {[%clk 0:00:05]} 53. Kc4 {[%clk 0:00:07]}  Kc6 {[%clk 0:00:05]} 54. Kd4 {[%clk 0:00:07]}  Kd6 {[%clk 0:00:06]} 55. g4 {[%clk 0:00:07]}  f5 {[%clk 0:00:06]} 56. g5 {[%clk 0:00:05]}  Kc6 {[%clk 0:00:06]} 57. Kc4 {[%clk 0:00:05]}  Kb6 {[%clk 0:00:06]} 58. Kb4 {[%clk 0:00:05]}  Kc6 {[%clk 0:00:06]} 59. Kc4 {[%clk 0:00:05]}  Kb6 {[%clk 0:00:06]} 60. h4 {[%clk 0:00:04]}  Kc6 {[%clk 0:00:06]} 61. a5 {[%clk 0:00:03]}  Kd6 {[%clk 0:00:06]} 62. Kd4 {[%clk 0:00:03]}  Kc6 {[%clk 0:00:07]} 63. Ke5 {[%clk 0:00:04]}  Kb5 {[%clk 0:00:07]} 64. Kf6 {[%clk 0:00:05]}  Kxa5 {[%clk 0:00:08]} 65. Kg7 {[%clk 0:00:06]}  Kb5 {[%clk 0:00:08]} 66. Kxh7 {[%clk 0:00:07]}  a5 {[%clk 0:00:08]} 67. h5 {[%clk 0:00:07]}  a4 {[%clk 0:00:09]} 68. hxg6 {[%clk 0:00:07]}  a3 {[%clk 0:00:10]} 69. g7 {[%clk 0:00:08]}  a2 {[%clk 0:00:10]} 70. g8=Q {[%clk 0:00:09]}  a1=Q {[%clk 0:00:11]} 71. Qd5+ {[%clk 0:00:09]}  Kb6 {[%clk 0:00:11]} 72. Qxf5 {[%clk 0:00:09]}  Qh1+ {[%clk 0:00:11]} 73. Kg6 {[%clk 0:00:09]}  Kc7 {[%clk 0:00:10]} 74. Qe5+ {[%clk 0:00:09]}  Kd8 {[%clk 0:00:10]} 75. f5 {[%clk 0:00:09]}  Qb1 {[%clk 0:00:08]} 76. Qe6 {[%clk 0:00:09]}  Qb2 {[%clk 0:00:07]} 77. f6 {[%clk 0:00:09]}  Qc2+ {[%clk 0:00:07]} 78. Kg7 {[%clk 0:00:09]}  Qc7+ {[%clk 0:00:06]} 79. Qe7+ {[%clk 0:00:09]}  Qxe7+ {[%clk 0:00:06]} 80. fxe7+ {[%clk 0:00:10]}  Kxe7 {[%clk 0:00:05]} 81. g6 {[%clk 0:00:11]} 1-0

[Event "December 19 Late 2023"]
[Site "https://www.chess.com"]
[Date "2023.12.19"]
[Round "1"]
[White "Szpar, Milosz"]
[Black "Kovacsy, Barnabas"]
[Result "1-0"]
[Board "41"]
[TimeControl "180+1"]
[WhiteFideId "1184989"]
[BlackFideId "769290"]
[WhiteElo "2446"]
[BlackElo "2130"]
[WhiteTeam "POL"]
[BlackTeam "HUN"]
[WhiteClock "0:00:04"]
[BlackClock "0:00:00"]

1. e4 {[%clk 0:03:00]}  c5 {[%clk 0:02:57]} 2. Nf3 {[%clk 0:03:00]}  e6 {[%clk 0:02:54]} 3. c3 {[%clk 0:03:00]}  d5 {[%clk 0:02:54]} 4. exd5 {[%clk 0:02:59]}  Qxd5 {[%clk 0:02:54]} 5. d4 {[%clk 0:02:59]}  Nf6 {[%clk 0:02:54]} 6. Na3 {[%clk 0:02:59]}  Nc6 {[%clk 0:02:53]} 7. Be3 {[%clk 0:02:58]}  cxd4 {[%clk 0:02:52]} 8. Nb5 {[%clk 0:02:58]}  Qd7 {[%clk 0:02:46]} 9. Nbxd4 {[%clk 0:02:57]}  Nd5 {[%clk 0:02:40]} 10. Bd2 {[%clk 0:02:46]}  Be7 {[%clk 0:02:34]} 11. Nxc6 {[%clk 0:02:45]}  bxc6 {[%clk 0:02:33]} 12. c4 {[%clk 0:02:43]}  Nf6 {[%clk 0:02:28]} 13. Qc2 {[%clk 0:02:41]}  O-O {[%clk 0:02:26]} 14. Bc3 {[%clk 0:02:40]}  Qc7 {[%clk 0:02:17]} 15. Bd3 {[%clk 0:02:37]}  h6 {[%clk 0:02:15]} 16. O-O-O {[%clk 0:02:31]}  c5 {[%clk 0:02:08]} 17. Ne5 {[%clk 0:02:27]}  Bb7 {[%clk 0:02:03]} 18. f4 {[%clk 0:02:27]}  Rad8 {[%clk 0:01:58]} 19. Rhg1 {[%clk 0:02:23]}  Nd7 {[%clk 0:01:54]} 20. g3 {[%clk 0:01:54]}  Nxe5 {[%clk 0:01:51]} 21. Bxe5 {[%clk 0:01:53]}  Bd6 {[%clk 0:01:49]} 22. Bc3 {[%clk 0:01:54]}  e5 {[%clk 0:01:42]} 23. Rde1 {[%clk 0:01:46]}  Rfe8 {[%clk 0:01:40]} 24. f5 {[%clk 0:01:39]}  Qe7 {[%clk 0:01:18]} 25. Be4 {[%clk 0:01:37]}  Bxe4 {[%clk 0:01:13]} 26. Qxe4 {[%clk 0:01:38]}  Rb8 {[%clk 0:01:10]} 27. Rgf1 {[%clk 0:01:26]}  Qg5+ {[%clk 0:01:08]} 28. Kb1 {[%clk 0:01:22]}  Qf6 {[%clk 0:01:02]} 29. h4 {[%clk 0:01:14]}  Rb6 {[%clk 0:01:02]} 30. Rd1 {[%clk 0:01:03]}  Reb8 {[%clk 0:00:57]} 31. Rd2 {[%clk 0:01:00]}  h5 {[%clk 0:00:29]} 32. Qe2 {[%clk 0:00:44]}  Qh6 {[%clk 0:00:16]} 33. f6 {[%clk 0:00:43]}  g6 {[%clk 0:00:15]} 34. Qe4 {[%clk 0:00:34]}  Qf8 {[%clk 0:00:12]} 35. Rfd1 {[%clk 0:00:32]}  Bc7 {[%clk 0:00:11]} 36. Rd7 {[%clk 0:00:29]}  Rd8 {[%clk 0:00:09]} 37. Bxe5 {[%clk 0:00:17]}  Rxd7 {[%clk 0:00:06]} 38. Rxd7 {[%clk 0:00:16]}  Bxe5 {[%clk 0:00:05]} 39. Qxe5 {[%clk 0:00:17]}  Re6 {[%clk 0:00:06]} 40. Qf4 {[%clk 0:00:06]}  Qe8 {[%clk 0:00:04]} 41. Rd1 {[%clk 0:00:04]}  Re1 {[%clk 0:00:04]} 42. Qc1 {[%clk 0:00:02]}  Qe4+ {[%clk 0:00:03]} 43. Ka1 {[%clk 0:00:03]}  Rxd1 {[%clk 0:00:02]} 44. Qxd1 {[%clk 0:00:03]}  Qxc4 {[%clk 0:00:02]} 45. a3 {[%clk 0:00:04]}  Qe6 {[%clk 0:00:01]} 46. Qf1 {[%clk 0:00:04]}  Kh7 {[%clk 0:00:01]} 47. Kb1 {[%clk 0:00:04]}  Qe4+ {[%clk 0:00:01]} 48. Kc1 {[%clk 0:00:04]}  Qe3+ {[%clk 0:00:02]} 49. Kc2 {[%clk 0:00:04]}  Qxg3 {[%clk 0:00:02]} 50. Qc4 {[%clk 0:00:04]}  Qh2+ {[%clk 0:00:03]} 51. Kb3 {[%clk 0:00:04]}  Qg3+ {[%clk 0:00:03]} 52. Ka2 {[%clk 0:00:04]}  Qc7 {[%clk 0:00:03]} 53. b4 {[%clk 0:00:03]}  Qh2+ {[%clk 0:00:03]} 54. Kb3 {[%clk 0:00:04]}  Qg3+ {[%clk 0:00:03]} 55. Ka4 {[%clk 0:00:04]}  cxb4 {[%clk 0:00:00]} 56. Qxf7+ {[%clk 0:00:04]} 1-0

[Event "December 19 Late 2023"]
[Site "https://www.chess.com"]
[Date "2023.12.19"]
[Round "1"]
[White "Liu, Casper"]
[Black "Mahdavi, Reza"]
[Result "0-1"]
[Board "42"]
[TimeControl "180+1"]
[WhiteFideId "1454153"]
[BlackFideId "12595926"]
[WhiteElo "2221"]
[BlackElo "2426"]
[WhiteTeam "DEN"]
[BlackTeam "IRI"]
[WhiteClock "0:00:00"]
[BlackClock "0:00:50"]

1. f4 {[%clk 0:02:57]}  Nf6 {[%clk 0:02:54]} 2. Nf3 {[%clk 0:02:57]}  c5 {[%clk 0:02:54]} 3. e3 {[%clk 0:02:58]}  d6 {[%clk 0:02:53]} 4. g3 {[%clk 0:02:59]}  g6 {[%clk 0:02:53]} 5. Bg2 {[%clk 0:02:59]}  Bg7 {[%clk 0:02:54]} 6. O-O {[%clk 0:03:00]}  O-O {[%clk 0:02:55]} 7. d4 {[%clk 0:03:00]}  Nc6 {[%clk 0:02:55]} 8. c3 {[%clk 0:03:01]}  Bd7 {[%clk 0:02:54]} 9. Nbd2 {[%clk 0:02:58]}  e5 {[%clk 0:02:53]} 10. fxe5 {[%clk 0:02:58]}  dxe5 {[%clk 0:02:54]} 11. dxc5 {[%clk 0:02:58]}  Qe7 {[%clk 0:02:52]} 12. b4 {[%clk 0:02:57]}  Nd5 {[%clk 0:02:53]} 13. Qb3 {[%clk 0:02:52]}  Nxe3 {[%clk 0:02:51]} 14. Re1 {[%clk 0:02:53]}  Nxg2 {[%clk 0:02:51]} 15. Kxg2 {[%clk 0:02:53]}  Be6 {[%clk 0:02:52]} 16. Qc2 {[%clk 0:02:45]}  a6 {[%clk 0:02:48]} 17. Ne4 {[%clk 0:02:42]}  f5 {[%clk 0:02:45]} 18. Bg5 {[%clk 0:02:35]}  Qc7 {[%clk 0:02:44]} 19. Nd6 {[%clk 0:02:34]}  e4 {[%clk 0:02:45]} 20. Ng1 {[%clk 0:02:20]}  Ne5 {[%clk 0:02:42]} 21. Ne2 {[%clk 0:02:16]}  Nf3 {[%clk 0:02:35]} 22. Be3 {[%clk 0:02:03]}  Nxe1+ {[%clk 0:02:25]} 23. Rxe1 {[%clk 0:02:04]}  Be5 {[%clk 0:02:25]} 24. Rd1 {[%clk 0:02:01]}  Rad8 {[%clk 0:02:25]} 25. Bf4 {[%clk 0:02:00]}  Qg7 {[%clk 0:02:04]} 26. Nd4 {[%clk 0:01:33]}  Qf6 {[%clk 0:01:35]} 27. Bg5 {[%clk 0:01:33]}  Qxg5 {[%clk 0:01:29]} 28. Nxe6 {[%clk 0:01:33]}  Qe7 {[%clk 0:01:29]} 29. Nxf8 {[%clk 0:01:31]}  Rxf8 {[%clk 0:01:29]} 30. Qb3+ {[%clk 0:01:27]}  Kg7 {[%clk 0:01:30]} 31. Qd5 {[%clk 0:01:24]}  Bxc3 {[%clk 0:01:26]} 32. a3 {[%clk 0:01:22]}  e3 {[%clk 0:01:25]} 33. Qd3 {[%clk 0:00:55]}  Bf6 {[%clk 0:01:09]} 34. Re1 {[%clk 0:00:51]}  Bg5 {[%clk 0:01:09]} 35. Qd5 {[%clk 0:00:48]}  f4 {[%clk 0:01:00]} 36. gxf4 {[%clk 0:00:45]}  Bxf4 {[%clk 0:00:58]} 37. Qd4+ {[%clk 0:00:34]}  Kh6 {[%clk 0:00:54]} 38. Re2 {[%clk 0:00:00]}  Qh4 {[%clk 0:00:50]} 0-1

[Event "December 19 Late 2023"]
[Site "https://www.chess.com"]
[Date "2023.12.19"]
[Round "1"]
[White "Flynn, Jacob"]
[Black "Beerdsen, Thomas"]
[Result "0-1"]
[Board "44"]
[TimeControl "180+1"]
[WhiteFideId "2509393"]
[BlackFideId "1030108"]
[WhiteElo "2100"]
[BlackElo "2550"]
[WhiteTeam "IRL"]
[BlackTeam "NED"]
[WhiteClock "0:00:00"]
[BlackClock "0:00:53"]

1. d4 {[%clk 0:02:59]}  Nf6 {[%clk 0:02:59]} 2. c4 {[%clk 0:02:54]}  a6 {[%clk 0:02:59]} 3. Nc3 {[%clk 0:02:51]}  b5 {[%clk 0:03:00]} 4. cxb5 {[%clk 0:02:52]}  axb5 {[%clk 0:03:01]} 5. Nxb5 {[%clk 0:02:53]}  e5 {[%clk 0:03:01]} 6. dxe5 {[%clk 0:02:51]}  Ne4 {[%clk 0:03:02]} 7. Nc3 {[%clk 0:02:42]}  Bb4 {[%clk 0:03:02]} 8. Bd2 {[%clk 0:02:42]}  Bxc3 {[%clk 0:03:01]} 9. Bxc3 {[%clk 0:02:39]}  Nxc3 {[%clk 0:03:01]} 10. bxc3 {[%clk 0:02:40]}  Nc6 {[%clk 0:03:01]} 11. Nf3 {[%clk 0:02:40]}  Qe7 {[%clk 0:03:01]} 12. e3 {[%clk 0:02:31]}  Ra3 {[%clk 0:03:01]} 13. Be2 {[%clk 0:02:27]}  Nxe5 {[%clk 0:03:00]} 14. O-O {[%clk 0:02:23]}  Rxc3 {[%clk 0:02:58]} 15. a4 {[%clk 0:02:21]}  O-O {[%clk 0:02:52]} 16. Qd4 {[%clk 0:02:10]}  Nxf3+ {[%clk 0:02:46]} 17. Bxf3 {[%clk 0:02:11]}  Rc5 {[%clk 0:02:45]} 18. Rfc1 {[%clk 0:02:04]}  Rxc1+ {[%clk 0:02:40]} 19. Rxc1 {[%clk 0:02:04]}  d6 {[%clk 0:02:33]} 20. g3 {[%clk 0:02:04]}  c5 {[%clk 0:02:30]} 21. Qe4 {[%clk 0:02:01]}  Qa7 {[%clk 0:02:26]} 22. Rd1 {[%clk 0:01:54]}  Bd7 {[%clk 0:02:25]} 23. Rxd6 {[%clk 0:01:43]}  Bxa4 {[%clk 0:02:26]} 24. Be2 {[%clk 0:01:35]}  Qc7 {[%clk 0:02:07]} 25. Qd5 {[%clk 0:01:31]}  Bb3 {[%clk 0:02:06]} 26. Qc6 {[%clk 0:01:30]}  Qa7 {[%clk 0:02:01]} 27. Kg2 {[%clk 0:01:08]}  Be6 {[%clk 0:01:57]} 28. Qb6 {[%clk 0:00:52]}  Qa8+ {[%clk 0:01:54]} 29. Bf3 {[%clk 0:00:49]}  Bh3+ {[%clk 0:01:53]} 30. Kxh3 {[%clk 0:00:49]}  Qxf3 {[%clk 0:01:54]} 31. Rd8 {[%clk 0:00:40]}  Qf5+ {[%clk 0:01:53]} 32. Kg2 {[%clk 0:00:39]}  g6 {[%clk 0:01:50]} 33. Rd6 {[%clk 0:00:30]}  Qe4+ {[%clk 0:01:46]} 34. Kg1 {[%clk 0:00:30]}  Ra8 {[%clk 0:01:44]} 35. Rd1 {[%clk 0:00:21]}  c4 {[%clk 0:01:44]} 36. Rc1 {[%clk 0:00:20]}  Rc8 {[%clk 0:01:38]} 37. Qd4 {[%clk 0:00:19]}  Qe6 {[%clk 0:01:21]} 38. Rc3 {[%clk 0:00:16]}  h5 {[%clk 0:01:21]} 39. h4 {[%clk 0:00:16]}  Kf8 {[%clk 0:01:16]} 40. e4 {[%clk 0:00:16]}  Ke7 {[%clk 0:01:10]} 41. Kg2 {[%clk 0:00:16]}  Rc7 {[%clk 0:01:08]} 42. Qe3 {[%clk 0:00:14]}  Qe5 {[%clk 0:01:06]} 43. Kg1 {[%clk 0:00:04]}  Kf8 {[%clk 0:01:05]} 44. Kg2 {[%clk 0:00:05]}  Kg7 {[%clk 0:01:05]} 45. Kg1 {[%clk 0:00:05]}  f6 {[%clk 0:01:05]} 46. Kg2 {[%clk 0:00:05]}  g5 {[%clk 0:01:03]} 47. hxg5 {[%clk 0:00:05]}  fxg5 {[%clk 0:01:04]} 48. Kg1 {[%clk 0:00:03]}  h4 {[%clk 0:01:04]} 49. gxh4 {[%clk 0:00:02]}  gxh4 {[%clk 0:01:05]} 50. Kh1 {[%clk 0:00:02]}  Kh7 {[%clk 0:01:01]} 51. Rc1 {[%clk 0:00:02]}  c3 {[%clk 0:00:59]} 52. Qe2 {[%clk 0:00:00]}  Qg5 {[%clk 0:00:53]} 0-1

[Event "December 19 Late 2023"]
[Site "https://www.chess.com"]
[Date "2023.12.19"]
[Round "1"]
[White "Abasov, Nijat"]
[Black "Sroczynski, Maciej"]
[Result "1-0"]
[Board "45"]
[TimeControl "180+1"]
[WhiteFideId "13402960"]
[BlackFideId "1121472"]
[WhiteElo "2561"]
[BlackElo "2266"]
[WhiteTeam "AZE"]
[BlackTeam "POL"]
[WhiteClock "0:00:17"]
[BlackClock "0:00:15"]

1. e4 {[%clk 0:02:55]}  c5 {[%clk 0:02:59]} 2. Nf3 {[%clk 0:02:54]}  d6 {[%clk 0:02:59]} 3. d4 {[%clk 0:02:54]}  cxd4 {[%clk 0:03:00]} 4. Nxd4 {[%clk 0:02:55]}  Nf6 {[%clk 0:03:00]} 5. Nc3 {[%clk 0:02:56]}  a6 {[%clk 0:03:01]} 6. Be2 {[%clk 0:02:47]}  e5 {[%clk 0:03:01]} 7. Nb3 {[%clk 0:02:47]}  Be7 {[%clk 0:03:00]} 8. Be3 {[%clk 0:02:45]}  Be6 {[%clk 0:02:58]} 9. O-O {[%clk 0:02:38]}  Nbd7 {[%clk 0:02:56]} 10. a4 {[%clk 0:02:35]}  O-O {[%clk 0:02:53]} 11. a5 {[%clk 0:02:28]}  Rc8 {[%clk 0:02:51]} 12. Qd2 {[%clk 0:01:43]}  Qc7 {[%clk 0:02:37]} 13. Rfd1 {[%clk 0:01:29]}  Qc6 {[%clk 0:02:35]} 14. Ra4 {[%clk 0:01:14]}  Rfd8 {[%clk 0:02:26]} 15. h3 {[%clk 0:01:09]}  Nc5 {[%clk 0:02:23]} 16. Nxc5 {[%clk 0:01:05]}  dxc5 {[%clk 0:02:24]} 17. Qe1 {[%clk 0:01:04]}  c4 {[%clk 0:02:16]} 18. Bf3 {[%clk 0:00:54]}  Bc5 {[%clk 0:02:00]} 19. Bxc5 {[%clk 0:00:46]}  Qxc5 {[%clk 0:02:00]} 20. Nd5 {[%clk 0:00:36]}  Bxd5 {[%clk 0:01:58]} 21. exd5 {[%clk 0:00:37]}  e4 {[%clk 0:01:59]} 22. Be2 {[%clk 0:00:38]}  c3 {[%clk 0:01:43]} 23. Qxc3 {[%clk 0:00:33]}  Qxc3 {[%clk 0:01:42]} 24. bxc3 {[%clk 0:00:34]}  Rxc3 {[%clk 0:01:38]} 25. Rb1 {[%clk 0:00:34]}  Rxc2 {[%clk 0:01:32]} 26. Bc4 {[%clk 0:00:29]}  Ne8 {[%clk 0:01:22]} 27. Rxb7 {[%clk 0:00:25]}  Nd6 {[%clk 0:01:22]} 28. Bxa6 {[%clk 0:00:24]}  Ra8 {[%clk 0:01:00]} 29. Rb6 {[%clk 0:00:23]}  Nf5 {[%clk 0:00:32]} 30. Rxe4 {[%clk 0:00:19]}  Rc5 {[%clk 0:00:23]} 31. Bb7 {[%clk 0:00:18]}  Rd8 {[%clk 0:00:20]} 32. a6 {[%clk 0:00:18]}  Nd6 {[%clk 0:00:15]} 33. Rxd6 {[%clk 0:00:17]} 1-0